Cogmind - Beta 11.1 --- EXPLORER MODE // 2022.06.08 @ 23:03:43 // Winter2019/RPGLIKE Player: Grimbling Result: Destroyed by G-73 Enforcer with Heavy Laser Performance ------------- Evolutions (9) 4500 Regions Visited (26) 5200 Robots Destroyed (535) 2675 Value Destroyed (30646) 30646 Prototype IDs (92) 1840 Alien Tech Used (0) 0 Bonus (8872) 8872 TOTAL SCORE: 53733 Bonus ------- Triggered Max Security 1000 High Alert Combat Kills 3146 Follower Combat Kills 816 Entered Garrisons 600 Used RIF Installer 1500 Network Hubs Disabled 800 Aligned with FarCom 300 Met Data Miner 300 Met R17 at Cetus 500 Scanned by Researcher 500 Friendly Fire -590 Cogmind --------- Core Integrity 0/1800 Matter 892/950 Energy 650/650 System Corruption 3% Temperature Cool (4) Movement Walking (120) Location -1/Access Parts ------- > --- POWER (3) -------- Improved Quantum Reactor Improved Quantum Reactor > --- PROPULSION (5) --- Centrium Leg Centrium Leg High-density Centrium Leg High-density Centrium Leg > --- UTILITY (12) ----- Experimental Signal Interpreter Long-range Terrain Scanner Advanced Target Analyzer Improved Kinecellerator SHELL Armor Advanced Focal Shield AEGIS Remote Shield Tractor Beam > --- WEAPON (5) ------- Heavy Gauss Cannon Heavy Gauss Cannon Heavy Gauss Cannon > --- INVENTORY (6) ---- Light Particle Reactor Experimental Matter Compressor (500) Experimental EM Disruption Field Tactical Quantum Warhead Sigix Terminator Peak State ------------ > --- POWER ------------ Light Particle Reactor Improved Quantum Reactor Improved Quantum Reactor > --- PROPULSION ------- Centrium Leg Centrium Leg Centrium Leg High-density Centrium Leg High-density Centrium Leg > --- UTILITY ---------- Experimental Signal Interpreter Long-range Terrain Scanner Advanced Target Analyzer Recoil Nullifier Improved Kinecellerator Cloak of Protection SHELL Armor Advanced Focal Shield AEGIS Remote Shield Tractor Beam > --- WEAPON ----------- Multirail Heavy Gauss Cannon Heavy Gauss Cannon Heavy Gauss Cannon Compact Mass Driver > --- INVENTORY -------- Centrium Leg Experimental Matter Compressor Experimental EM Disruption Field Tactical Quantum Warhead Sigix Terminator [Rating: 214] Favorites ----------- Power Quantum Reactor Engine F-cell Engine Power Core Light Nuclear Core Reactor Quantum Reactor Propulsion Enhanced Biometal Leg Leg Enhanced Biometal Leg Utility Tractor Beam Device Tractor Beam Storage Advanced Matter Compressor Processor Improved Target Analyzer Hackware Hacking Suite Protection Medium Regenerative Plating Weapon Heavy Gauss Cannon Energy Gun Precision Shock Rifle Energy Cannon Firepult Ballistic Gun Gauss Rifle Ballistic Cannon Heavy Gauss Cannon Launcher Heavy Missile Launcher Build | -11 -10 -10 -10 -9 -8 -7 -7 -7 -7 -6 -6 -6 -6 -6 -6 -5 -5 -4 -4 -4 -4 -3 -3 -2 -2 -1 ------- Run | Scr Mat Min Exi Min Mat Fac Low Low Dat Pro Fac Ext Cet Arc Hub Fac Gar Fac Gar Fac Gar Res Tes Res Qua Acc Slots Evolved 21 | 5 . . 1 . 3 2 . . . . 1 2 . . . 1 . 1 1 1 . . 1 1 . 1 Power 2 | . . . . . 1 . . . . . . . . . . . . . . 1 . . . . . . Propulsion 4 | 1 . . . . 1 . . . . . 1 . . . . . . . . . . . 1 . . . Utility 11 | 2 . . 1 . 1 1 . . . . . 2 . . . 1 . 1 . . . . . 1 . 1 Weapon 4 | 2 . . . . . 1 . . . . . . . . . . . . 1 . . . . . . . Parts Attached 190 | 8 1 1 9 2 24 5 . . 3 2 6 8 5 1 16 10 1 3 2 13 4 5 27 13 4 17 Power 25 | 1 . 1 . . 3 2 . . . 1 2 2 . . 1 . . . 1 3 . 1 2 2 2 1 Engine 9 | 1 . 1 . . 2 2 . . . 1 2 . . . . . . . . . . . . . . . Core 3 | . . . . . 1 . . . . . . . . . . . . . . 2 . . . . . . Reactor 13 | . . . . . . . . . . . . 2 . . 1 . . . 1 1 . 1 2 2 2 1 Propulsion 36 | 2 1 . . . 7 . . . . . 2 1 . . 5 2 1 . . . . . 3 4 1 7 Treads . | . . . . . . . . . . . . . . . . . . . . . . . . . . . Leg 36 | 2 1 . . . 7 . . . . . 2 1 . . 5 2 1 . . . . . 3 4 1 7 Wheel . | . . . . . . . . . . . . . . . . . . . . . . . . . . . Hover . | . . . . . . . . . . . . . . . . . . . . . . . . . . . Flight . | . . . . . . . . . . . . . . . . . . . . . . . . . . . Utility 68 | 3 . . 4 . 4 3 . . . . 1 5 . . 8 4 . 2 . 5 . 1 15 6 . 7 Device 47 | 3 . . 2 . 1 1 . . . . 1 4 . . 7 2 . 1 . 1 . 1 12 4 . 7 Storage 1 | . . . . . . . . . . . . . . . . . . . . 1 . . . . . . Processor 9 | . . . . . 1 1 . . . . . 1 . . 1 1 . 1 . 1 . . . 2 . . Hackware 1 | . . . . . 1 . . . . . . . . . . . . . . . . . . . . . Protection 10 | . . . 2 . 1 1 . . . . . . . . . 1 . . . 2 . . 3 . . . Artifact . | . . . . . . . . . . . . . . . . . . . . . . . . . . . Weapon 61 | 2 . . 5 2 10 . . . 3 1 1 . 5 1 2 4 . 1 1 5 4 3 7 1 1 2 Energy Gun 1 | . . . . . 1 . . . . . . . . . . . . . . . . . . . . . Energy Cannon 3 | . . . 3 . . . . . . . . . . . . . . . . . . . . . . . Ballistic Gun 31 | 2 . . 2 2 9 . . . 3 1 1 . 3 1 2 . . . . . . 1 3 . 1 . Ballistic Cannon 22 | . . . . . . . . . . . . . . . . 4 . 1 1 5 4 1 3 1 . 2 Launcher 4 | . . . . . . . . . . . . . 2 . . . . . . . . 1 1 . . . Special Weapon . | . . . . . . . . . . . . . . . . . . . . . . . . . . . Impact Weapon . | . . . . . . . . . . . . . . . . . . . . . . . . . . . Slashing Weapon . | . . . . . . . . . . . . . . . . . . . . . . . . . . . Piercing Weapon . | . . . . . . . . . . . . . . . . . . . . . . . . . . . Special Melee Weapon . | . . . . . . . . . . . . . . . . . . . . . . . . . . . Unidentified Prototypes 33 | . . . 3 . 2 . . . . . . 2 . . 4 2 . . . 2 . 2 11 3 2 . Parts Lost 1 | . . . . . . . . . . . . . . . . . . . . . . . . . . 1 Power . | . . . . . . . . . . . . . . . . . . . . . . . . . . . Propulsion . | . . . . . . . . . . . . . . . . . . . . . . . . . . . Utility 1 | . . . . . . . . . . . . . . . . . . . . . . . . . . 1 Weapon . | . . . . . . . . . . . . . . . . . . . . . . . . . . . Highest Loss Streak 1 | . . . . . . . . . . . . . . . . . . . . . . . . . . 1 To Critical Strikes 1 | . . . . . . . . . . . . . . . . . . . . . . . . . . 1 Average Slot Usage (%) 95 | . 88 88 88 96 93 94 93 93 75 98 99 100 100 100 99 99 100 100 100 99 100 99 94 89 90 90 Engine 2 | . 11 11 10 10 10 6 6 6 6 12 12 4 . . . . . . . . . . . . . . Reactor 8 | . . . . . . . . . . . . 6 11 11 11 10 10 10 9 9 13 13 12 12 11 11 Leg 20 | . 22 22 20 20 19 20 20 20 20 20 24 22 22 22 22 21 21 20 19 18 18 18 20 20 20 19 Device 28 | . 33 33 34 40 31 24 26 26 26 26 29 34 33 33 32 27 26 29 28 27 27 27 23 22 25 25 Processor 8 | . . . . . . 4 6 6 6 6 6 5 11 11 11 12 15 15 14 13 13 12 8 8 8 8 Protection 3 | . . . 4 . 5 6 6 6 6 6 1 . . . . 4 5 5 4 4 4 4 5 4 4 4 Ballistic Gun 10 | . 22 22 18 26 24 20 20 20 2 24 25 22 21 22 21 15 . . . . . 2 1 . 1 3 Ballistic Cannon 11 | . . . . . . . . . . . . . . . . 5 21 20 22 22 22 19 19 20 18 15 Naked Turns . | . . . . . . . . . . . . . . . . . . . . . . . . . . . Heaviest Build 166 | 11 11 11 40 23 37 45 45 45 45 54 59 60 58 56 68 93 93 99 112 128 134 135 148 166 162 162 Greatest Support 164 | 30 30 30 30 30 65 65 65 65 65 65 80 81 81 81 130 130 130 130 130 130 130 130 153 160 162 164 Greatest Overweight (x) 1 | . . . 1 . . . . . . . . . . . . . . . . . 1 1 1 1 . 1 Average Overweight (x) . | . . . . . . . . . . . . . . . . . . . . . . . . . . . Largest Inventory Capacity 6 | 2 2 2 2 2 5 5 6 6 6 6 6 6 6 6 6 6 6 6 6 6 6 6 6 6 6 6 Average Capacity 5 | 2 2 2 2 2 4 5 5 6 6 6 6 6 6 6 6 6 6 6 6 6 6 6 6 6 6 6 Most Carried 6 | . 1 2 2 2 5 5 3 5 6 5 6 6 6 5 6 6 6 6 6 6 6 6 6 6 6 6 Average Carried 5 | . . 1 1 2 4 3 3 3 4 4 5 5 5 4 5 5 6 5 5 5 5 5 5 5 5 5 Final Capacity 6 | 2 2 2 2 2 5 5 6 6 6 6 6 6 6 6 6 6 6 6 6 6 6 6 6 6 6 6 Final Carried 6 | . 1 1 2 2 5 3 3 4 4 4 6 6 4 5 5 6 6 6 6 6 6 6 6 6 5 6 Class Distribution -------------------- 43% | Scavenger-Gunner 22% | Scavenger-Skirmisher 19% | Generator-Skirmisher Dominant Class ---------------- Hacker-Mutant | -10/Materials Hacker-Mutant | -10/Mines Scavenger-Skirmisher | -10/Exiles Scavenger-Skirmisher | -9/Mines Hacker-Skirmisher | -8/Materials Scavenger-Skirmisher | -7/Factory Scavenger-Skirmisher | -7/Lower Caves Scavenger-Skirmisher | -7/Lower Caves Scavenger-Mutant | -7/Data Miner Scavenger-Skirmisher | -6/Proximity Caves Scavenger-Gunner | -6/Factory Scavenger-Gunner | -6/Extension Scavenger-Gunner | -6/Cetus Scavenger-Gunner | -6/Archives Scavenger-Skirmisher | -6/Hub_04(d) Scavenger-Skirmisher | -5/Factory Scavenger-Gunner | -5/Garrison Scavenger-Gunner | -4/Factory Scavenger-Gunner | -4/Garrison Scavenger-Gunner | -4/Factory Scavenger-Gunner | -4/Garrison Scavenger-Gunner | -3/Research Scavenger-Skirmisher | -3/Testing Generator-Skirmisher | -2/Research Generator-Skirmisher | -2/Quarantine Generator-Skirmisher | -1/Access Resources | -11 -10 -10 -10 -9 -8 -7 -7 -7 -7 -6 -6 -6 -6 -6 -6 -5 -5 -4 -4 -4 -4 -3 -3 -2 -2 -1 ----------- Run | Scr Mat Min Exi Min Mat Fac Low Low Dat Pro Fac Ext Cet Arc Hub Fac Gar Fac Gar Fac Gar Res Tes Res Qua Acc Matter Collected 24843 | 501 101 54 . 260 576 501 23 100 . 226 711 836 560 205 1130 614 1500 901 1515 1570 2670 639 1951 3188 349 4162 Remotely 23424 | 184 101 54 . 179 560 501 23 100 . 226 711 836 560 205 1130 614 1500 901 1515 1552 2470 495 1551 3178 349 3929 Salvage Created 19841 | 154 287 140 84 56 669 752 . 68 . . 1254 1390 269 205 1121 1000 1365 839 1658 1083 1061 445 957 1734 92 3158 Parts 995 | 10 14 10 2 2 57 44 . 9 . . 61 54 20 14 88 47 47 54 69 49 33 29 35 58 4 185 Haulers Intercepted 8 | . . . . . 2 . . . . . 1 . . . . 2 . . . 3 . . . . . . Recyclers Shooed 9 | . . 1 . . . . . . . . 4 . . . . 1 . . . 1 . 1 . 1 . . Parts Field Recycled . | . . . . . . . . . . . . . . . . . . . . . . . . . . . Retrieved Matter . | . . . . . . . . . . . . . . . . . . . . . . . . . . . Parts Self-Destructed . | . . . . . . . . . . . . . . . . . . . . . . . . . . . Prevented . | . . . . . . . . . . . . . . . . . . . . . . . . . . . Kills | -11 -10 -10 -10 -9 -8 -7 -7 -7 -7 -6 -6 -6 -6 -6 -6 -5 -5 -4 -4 -4 -4 -3 -3 -2 -2 -1 ------- Run | Scr Mat Min Exi Min Mat Fac Low Low Dat Pro Fac Ext Cet Arc Hub Fac Gar Fac Gar Fac Gar Res Tes Res Qua Acc Combat Hostiles Destroyed 421 | . 5 2 3 3 14 11 . 5 . . 15 19 15 4 18 13 25 17 29 29 33 9 25 41 1 85 Guns 138 | . 3 2 . 3 12 11 . 5 . . 15 19 12 4 18 8 . . . . . . 2 . . 24 Cannons 271 | . . . . . . . . . . . . . . . . 4 25 17 29 29 33 9 23 41 1 60 AOE 11 | . 2 . 2 . 2 . . . . . . . 3 . . 1 . . . . . . . . . 1 Classes Destroyed 26 | 2 1 . 2 2 4 1 . 1 . . . 4 . . 1 . 1 . . . 1 . 1 1 1 3 Worker 20 | . . . . 1 1 2 . . . . 1 . . . 3 . . 4 . 3 . . . 4 . 1 Builder 25 | . . . . . . . . . . . . 2 . . . 2 . . . 1 . 4 2 3 1 10 Tunneler 8 | 4 . 1 . . . . . . . . . . . . 2 . . . . . . 1 . . . . Hauler 8 | . . . . . 2 . . . . . 1 . . . . 2 . . . 3 . . . . . . Recycler 9 | 1 1 . . . 2 . . . . . 3 1 . . 1 . . . . . . . . . . . Carrier 2 | . . . . . . . . . . . . . . . . . 1 . 1 . . . . . . . Minesweeper 1 | . . . . . . . . 1 . . . . . . . . . . . . . . . . . . Operator 13 | . . . . . 1 2 . . . . 1 2 . . 1 . . 1 . . . . 1 2 1 1 Watcher 32 | . . . . . . 2 . . . . 3 1 2 . 1 2 . 4 . 5 . 1 1 5 1 4 Swarmer 78 | . . . . . 5 2 . 3 . . . 3 2 . 2 3 8 4 6 10 9 2 . 4 . 15 Saboteur 7 | . . . . . . . . . . . . . . . . . . . . . . . . . . 7 Grunt 139 | . 5 2 . . 5 5 . 2 . . 11 8 1 . 2 3 9 7 14 8 12 4 7 8 . 26 Brawler 15 | . . . . . . . . . . . . 2 . . . 1 . . 1 3 5 . . . . 3 Duelist 4 | . . . . . . . . . . . . 1 1 . . . . . . . . . . . . 2 Protector 2 | . . . . . . . . . . . . . . . 1 . . . . . . . . . . 1 Researcher 2 | . . . . . . . . . . . . . . . . . . . . . . . 1 . 1 . Sentry 45 | . . . . . 3 2 . . . . 2 1 . 4 6 . 2 2 4 2 3 2 3 4 . 5 Specialist 1 | . . . . . . . . . . . . . . . . . . . . . 1 . . . . . Hunter 50 | . . . 2 . 1 . . . . . 1 . 3 . 1 2 4 2 4 . 4 . 2 14 . 10 Programmer 55 | . . . 1 . . 2 . . . . 1 2 . . 2 4 1 2 . 6 . 1 13 10 . 10 Heavy 2 | . . . . . . . . . . . . . . . . . . . . . . . . 1 . 1 Q-Series 4 | . . . . . . . . . . . . . . . . . . . . . . . . . . 4 Behemoth 4 | . . . . . . . . . . . . 2 . . 1 . 1 . . . . . . . . . Cetus Guard 8 | . . . . . . . . . . . . . 8 . . . . . . . . . . . . . Lightning 3 | . . . . . . . . . . . . . . . 3 . . . . . . . . . . . Investigator 1 | . . . . . . . . . . . . . . . . . . . . . . . . . . 1 Executioner 1 | . . . . . . . . . . . . . . . . . . . . . . . . . . 1 Alpha 7 1 | . . . . . . . . . . . . . . . . . . . . . . . . . 1 . Assembled 3 | . . . . 3 . . . . . . . . . . . . . . . . . . . . . . Butcher 1 | . . . . . . . . . . . . 1 . . . . . . . . . . . . . . Best Kill Streak 14 | 4 3 2 2 2 4 7 . 3 . . 6 7 7 1 5 3 11 6 8 8 7 6 6 9 2 14 Combat Bots Only 14 | . 2 2 2 1 3 6 . 3 . . 4 4 6 1 4 3 11 4 8 6 7 3 6 6 1 14 Max Kills in Single Turn 3 | 1 3 1 2 1 2 2 . 1 . . 2 2 2 1 3 2 2 3 2 3 3 3 2 3 2 3 Gunslinging 1 | . . . . . 1 . . . . . 1 1 1 . 1 1 . . . . . . . . . . Exploded 2 | . 2 . 2 . 2 . . . . . . . 1 . . 1 . . . . . . . . . 1 Melee . | . . . . . . . . . . . . . . . . . . . . . . . . . . . Uniques/NPCs Destroyed . | . . . . . . . . . . . . . . . . . . . . . . . . . . . Combat | -11 -10 -10 -10 -9 -8 -7 -7 -7 -7 -6 -6 -6 -6 -6 -6 -5 -5 -4 -4 -4 -4 -3 -3 -2 -2 -1 -------- Run | Scr Mat Min Exi Min Mat Fac Low Low Dat Pro Fac Ext Cet Arc Hub Fac Gar Fac Gar Fac Gar Res Tes Res Qua Acc Damage Taken 14721 | . 131 116 484 79 248 333 . 117 . . 451 358 1106 154 889 116 493 72 526 432 1237 422 567 970 43 5377 Core 9966 | . 105 94 387 62 194 235 . 82 . . 343 275 871 116 701 79 335 54 356 297 865 309 363 575 23 3245 Absorbed by Shields 7558 | . . . . . . . . . . . 150 138 368 58 331 . . 27 220 177 496 165 134 129 38 5127 Redirected to Core 9176 | . 83 63 339 55 158 223 . 82 . . 334 256 763 116 619 79 315 54 347 290 832 281 342 526 23 2996 Regen/Repaired (Parts) 1980 | . . . . . 12 . . . . . . . . . . 78 76 . 57 79 114 25 94 265 32 1148 Core Remaining (%) 79 | 100 . . . 7 86 . . . . 100 . . . . 48 . 100 . . . 95 . 96 . 82 . Volleys Fired 884 | 12 16 11 4 10 36 37 . 11 . 3 41 49 36 16 45 29 47 31 40 49 58 17 44 79 13 150 Largest 5 | 2 2 2 1 3 3 3 . 3 . 3 4 4 4 4 4 4 4 4 5 5 5 5 5 5 5 5 Hottest 321 | 40 40 40 250 68 81 81 . 81 . 81 114 114 123 112 122 244 244 244 305 321 321 309 310 310 310 294 Shots Fired 3512 | 24 32 22 4 29 108 111 . 34 . 10 164 193 144 49 180 107 185 124 179 245 271 77 212 374 65 569 Gun 1341 | 24 32 22 . 29 108 111 . 34 . 10 164 193 125 49 180 91 . . . . . 13 25 . 4 127 Cannon 2152 | . . . 4 . . . . . . . . . . . . 16 185 124 179 245 271 64 187 374 61 442 Launcher 19 | . . . . . . . . . . . . . 19 . . . . . . . . . . . . . Special . | . . . . . . . . . . . . . . . . . . . . . . . . . . . Kinetic 3489 | 24 32 22 . 29 108 111 . 34 . 10 164 193 125 49 180 107 185 124 179 245 271 77 212 374 65 569 Thermal 4 | . . . 4 . . . . . . . . . . . . . . . . . . . . . . . Explosive 19 | . . . . . . . . . . . . . 19 . . . . . . . . . . . . . Electromagnetic . | . . . . . . . . . . . . . . . . . . . . . . . . . . . Robot Hit Streak 79 | 20 29 18 6 5 29 18 . 35 . 45 57 22 34 22 30 46 37 50 74 48 24 13 47 52 55 79 Robot Miss Streak 4 | . 2 1 2 2 2 2 . . . . 2 2 1 1 1 2 1 1 2 1 1 2 2 4 . 4 Penetration Max 2 | . . . . . 1 1 . . . . 1 1 1 1 1 1 1 1 1 . 1 2 1 1 . 2 Secondary Targets 25 | . 1 1 . . 4 2 . 1 . . 6 4 2 . 3 1 . . . . . . . . . . Max Gunslinging Chain 1 | . 1 1 . . 1 1 . 1 . . 1 1 1 . 1 1 . . . . . . . . . . Shots Hit Robots 2453 | 20 25 19 4 21 90 82 . 28 . 10 135 146 103 36 128 76 101 84 89 146 175 44 144 268 35 444 Core Hits 1109 | 8 12 7 5 9 35 30 . 8 . 4 55 50 80 12 59 35 38 38 42 61 72 22 49 111 13 254 Critical Kills 110 | . . . . . . 3 . 1 . . 5 2 3 1 6 7 22 20 26 2 . . 1 . . 11 Critical Parts Destroyed 163 | . . . . . 1 1 . 1 . 1 12 4 3 2 10 16 36 24 26 4 . 1 . . . 21 Critical Strikes 512 | . . . . . 1 4 . 2 . 1 17 6 7 4 17 23 62 46 59 31 34 8 35 62 9 84 Destroy 286 | . . . . . 1 4 . 2 . 1 17 6 7 4 17 23 62 44 54 6 . 1 2 . . 35 Blast 226 | . . . . . . . . . . . . . . . . . . 2 5 25 34 7 33 62 9 49 Melee Attacks . | . . . . . . . . . . . . . . . . . . . . . . . . . . . Impact . | . . . . . . . . . . . . . . . . . . . . . . . . . . . Slashing . | . . . . . . . . . . . . . . . . . . . . . . . . . . . Piercing . | . . . . . . . . . . . . . . . . . . . . . . . . . . . Sneak Attacks . | . . . . . . . . . . . . . . . . . . . . . . . . . . . Combat Hostiles . | . . . . . . . . . . . . . . . . . . . . . . . . . . . Follow-up Attacks . | . . . . . . . . . . . . . . . . . . . . . . . . . . . Damage Inflicted 78026 | 207 540 194 278 258 1539 1775 . 330 . 181 2952 3802 4068 903 3168 1694 1681 1427 1789 5803 6615 2338 6038 10234 1318 18894 Guns 25344 | 207 219 186 . 248 1338 1775 . 330 . 181 2925 3802 2181 894 2828 1350 . . . . . 453 705 . 95 5627 Cannons 48737 | . . . 37 . . . . . . . . . . . . 260 1681 1368 1789 5729 6615 1826 5174 10234 1193 12831 Explosions 3210 | . 321 . 241 . 193 . . . . . . . 1887 . 277 . . . . 50 . . 159 . . 82 Melee . | . . . . . . . . . . . . . . . . . . . . . . . . . . . Ramming 735 | . . 8 . 10 8 . . . . . 27 . . 9 63 84 . 59 . 24 . 59 . . 30 354 Kinetic 74044 | 207 219 186 . 248 1338 1775 . 330 . 181 2925 3802 2181 894 2828 1610 1681 1368 1789 5729 6615 2279 5879 10234 1288 18458 Thermal 278 | . . . 278 . . . . . . . . . . . . . . . . . . . . . . . Explosive 2533 | . 321 . . . 193 . . . . . . . 1887 . . . . . . 50 . . . . . 82 Electromagnetic 436 | . . . . . . . . . . . . . . . 277 . . . . . . . 159 . . . Impact . | . . . . . . . . . . . . . . . . . . . . . . . . . . . Slashing . | . . . . . . . . . . . . . . . . . . . . . . . . . . . Piercing . | . . . . . . . . . . . . . . . . . . . . . . . . . . . Highest Corruption 9 | . . . 3 3 2 3 3 3 3 3 . . . . 4 . . . . . . . 1 7 9 3 Average Corruption 2 | . . . 2 3 1 1 3 3 3 3 . . . . 2 . . . . . . . 1 5 8 1 Corruption Purged 5 | . . . . . . . . . . . . . . . 5 . . . . . . . . . . . Corruption Blocked . | . . . . . . . . . . . . . . . . . . . . . . . . . . . Effects 91 | . . . 1 8 . 3 7 3 1 8 . . . . 1 . . . . . . . 8 22 15 14 Message Errors 24 | . . . . 2 . . 3 1 1 5 . . . . . . . . . . . . 2 3 3 4 Matter Fused 17 | . . . . 1 . 2 2 . . . . . . . . . . . . . . . 1 6 2 3 Heat Flow Errors 12 | . . . . 1 . 1 . 1 . 1 . . . . . . . . . . . . 1 4 2 1 Energy Discharges 11 | . . . . 2 . . 1 . . . . . . . . . . . . . . . 1 2 3 2 Parts Rejected 1 | . . . . . . . . . . . . . . . . . . . . . . . . 1 . . Data Loss (minor) 10 | . . . . 2 . . . . . 1 . . . . . . . . . . . . 2 2 2 1 Data Loss (major) 7 | . . . 1 . . . 1 . . . . . . . 1 . . . . . . . . 1 1 2 Misfires 3 | . . . . . . . . 1 . 1 . . . . . . . . . . . . . . 1 . Alerts 2 | . . . . . . . . . . . . . . . . . . . . . . . 1 1 . . Weapon Failures 4 | . . . . . . . . . . . . . . . . . . . . . . . . 2 1 1 Overload Shots . | . . . . . . . . . . . . . . . . . . . . . . . . . . . Overflow Damage 1446 | . . . 1 . . . . . . . . . 14 . 7 23 . 15 8 173 177 168 294 226 50 290 Projectiles 1345 | . . . . . . . . . . . . . . . . 3 . 15 8 173 177 149 294 226 40 260 Explosions 22 | . . . 1 . . . . . . . . . 14 . 7 . . . . . . . . . . . Melee 79 | . . . . . . . . . . . . . . . . 20 . . . . . 19 . . 10 30 Knockbacks 314 | . . . . . . . . . . . 1 . . . . 5 6 9 18 35 42 8 49 36 9 96 Impact 4 | . . . . . . . . . . . 1 . . . . 2 . . . 1 . . . . . . Kinetic 280 | . . . . . . . . . . . . . . . . 3 5 8 17 29 38 7 45 35 9 84 Secondary 30 | . . . . . . . . . . . . . . . . . 1 1 1 5 4 1 4 1 . 12 Self-Inflicted Damage 349 | . 46 . . . . . . . . . . . . . 236 . . . . . . . . . . 67 Shots 6 | . 1 . . . . . . . . . . . . . 4 . . . . . . . . . . 1 Rammed . | . . . . . . . . . . . . . . . . . . . . . . . . . . . Targets Rammed 48 | . . 1 . 1 3 . . . . . 2 . . 1 7 3 . 5 . 1 . 1 . . 1 22 Kicked 48 | . . 1 . 1 3 . . . . . 2 . . 1 7 3 . 5 . 1 . 1 . . 1 22 Crushed . | . . . . . . . . . . . . . . . . . . . . . . . . . . . Highest Temperature 488 | . 28 9 488 89 399 238 . 94 . 103 . . . . . 101 477 179 155 219 292 72 301 203 158 282 Average Temperature 68 | . 13 8 199 18 74 122 . 46 . 43 . . . . . 56 113 25 53 85 107 29 58 60 96 18 Received Heat Transfer 3254 | . 102 102 . 6 117 108 . 72 . . 200 84 100 50 47 36 144 21 235 143 344 105 175 18 . 1045 Effects 13 | . . . 2 . . . . . . . . . . . . . 8 . . . 3 . . . . . Shutdowns 2 | . . . . . . . . . . . . . . . . . 2 . . . . . . . . . Energy Bleed 1 | . . . . . . . . . . . . . . . . . . . . . 1 . . . . . Interference 9 | . . . 1 . . . . . . . . . . . . . 6 . . . 2 . . . . . Matter Decay 1 | . . . 1 . . . . . . . . . . . . . . . . . . . . . . . Siege Activations . | . . . . . . . . . . . . . . . . . . . . . . . . . . . Robots Corrupted . | . . . . . . . . . . . . . . . . . . . . . . . . . . . Combat Hostiles . | . . . . . . . . . . . . . . . . . . . . . . . . . . . Parts Fried 3 | . . . . . . . . . . . . . . . . . . . . 2 . . 1 . . . Impact Corruptions 12 | . . . . . . . . . . . . . . . . 2 . . 1 1 . 1 . . 1 6 Robots Melted 1 | . . . 1 . . . . . . . . . . . . . . . . . . . . . . . Combat Hostiles 1 | . . . 1 . . . . . . . . . . . . . . . . . . . . . . . Parts Melted 7 | . . . 7 . . . . . . . . . . . . . . . . . . . . . . . Heat Transferred 1600 | . . . 1600 . . . . . . . . . . . . . . . . . . . . . . . Parts Sabotaged 4 | . . . . . . . . . . . . . . . . . . . . . . . . . . 4 Parts Stolen . | . . . . . . . . . . . . . . . . . . . . . . . . . . . Parts Stripped . | . . . . . . . . . . . . . . . . . . . . . . . . . . . Power Chain Reactions 2 | . . . . . . . . . . . . . . . 1 . . . . . . . 1 . . . Missiles Intercepted . | . . . . . . . . . . . . . . . . . . . . . . . . . . . Alert | -11 -10 -10 -10 -9 -8 -7 -7 -7 -7 -6 -6 -6 -6 -6 -6 -5 -5 -4 -4 -4 -4 -3 -3 -2 -2 -1 ------- Run | Scr Mat Min Exi Min Mat Fac Low Low Dat Pro Fac Ext Cet Arc Hub Fac Gar Fac Gar Fac Gar Res Tes Res Qua Acc Peak Influence 2399 | 25 168 59 . 20 309 236 . . . . 274 274 223 195 544 252 934 652 991 531 724 305 250 280 97 2399 Initial 386 | . 12 4 . . . 54 . . . . 15 . 33 45 46 132 29 364 180 386 91 305 31 3 51 44 Average 224 | 10 75 30 . 5 124 113 . . . . 108 87 122 143 171 74 524 472 677 262 466 159 65 88 50 320 Maximum Alert Level 5 | . . . . . 1 1 . . . . 1 1 1 . 2 1 3 2 3 2 3 1 1 1 . 5 Low Security (%) 67 | 100 100 100 . 100 68 91 . . . . 84 80 97 100 69 88 20 . 3 44 4 67 97 90 100 72 Level 1 15 | . . . . . 31 8 . . . . 15 19 2 . 20 11 12 22 12 26 30 32 2 9 . 13 Level 2 12 | . . . . . . . . . . . . . . . 9 . 38 77 29 29 59 . . . . 1 Level 3 3 | . . . . . . . . . . . . . . . . . 28 . 54 . 5 . . . . . Level 4 . | . . . . . . . . . . . . . . . . . . . . . . . . . . . Level 5 . | . . . . . . . . . . . . . . . . . . . . . . . . . . . High Security . | . . . . . . . . . . . . . . . . . . . . . . . . . . . Max Security 2 | . . . . . . . . . . . . . . . . . . . . . . . . . . 12 Squads Dispatched 90 | . . . . 1 2 7 . . . . 5 2 . . 8 3 . 1 . 5 . 7 5 6 2 36 Investigation 15 | . . . . 1 1 2 . . . . 4 1 . . . . . . . . . 2 2 1 . 1 Extermination 23 | . . . . . . 2 . . . . 1 . . . 2 2 . 1 . 3 . 2 3 2 . 5 Reinforcement 21 | . . . . . 1 . . . . . . 1 . . 2 1 . . . 1 . 3 . 3 2 7 Assault 22 | . . . . . . . . . . . . . . . . . . . . 1 . . . . . 21 Garrison 9 | . . . . . . 3 . . . . . . . . 4 . . . . . . . . . . 2 Intercept . | . . . . . . . . . . . . . . . . . . . . . . . . . . . Searches Triggered . | . . . . . . . . . . . . . . . . . . . . . . . . . . . Data Miner Redirects 6 | . . . . . . . . . . . 2 . . . . . . . . 1 . 1 1 . . 1 Construction Impeded 4 | . . . . . . . . . . . . . . . . . . . . 1 . 1 . . . 2 Haulers Reinforced 4 | . . . . . . . . . . . . . . . . 1 . . . . . 1 . 1 . 1 Active Scanning Responses . | . . . . . . . . . . . . . . . . . . . . . . . . . . . Cargo Convoy Interrupts . | . . . . . . . . . . . . . . . . . . . . . . . . . . . Stealth | -11 -10 -10 -10 -9 -8 -7 -7 -7 -7 -6 -6 -6 -6 -6 -6 -5 -5 -4 -4 -4 -4 -3 -3 -2 -2 -1 --------- Run | Scr Mat Min Exi Min Mat Fac Low Low Dat Pro Fac Ext Cet Arc Hub Fac Gar Fac Gar Fac Gar Res Tes Res Qua Acc Distress Signals 22 | . . . . . 1 . . . . . 2 1 . . . . . 2 . 6 . 1 1 1 . 7 Communications Jammed . | . . . . . . . . . . . . . . . . . . . . . . . . . . . Distress Signals . | . . . . . . . . . . . . . . . . . . . . . . . . . . . Times Spotted 647 | . 7 2 11 4 19 16 . 6 . 1 22 26 15 6 27 13 27 19 32 39 36 25 29 44 4 217 Peak Tracking Total 55 | . 2 2 12 1 4 5 . 3 . 1 3 3 6 1 4 4 5 4 6 6 7 14 6 6 1 55 Tactical Retreats 35 | . . . 2 . . . . 1 . . . . . . 1 1 4 1 3 . 3 1 . . . 18 Traps | -11 -10 -10 -10 -9 -8 -7 -7 -7 -7 -6 -6 -6 -6 -6 -6 -5 -5 -4 -4 -4 -4 -3 -3 -2 -2 -1 ------- Run | Scr Mat Min Exi Min Mat Fac Low Low Dat Pro Fac Ext Cet Arc Hub Fac Gar Fac Gar Fac Gar Res Tes Res Qua Acc Traps Triggered 32 | . . . . . 2 1 . . . . 1 1 . . 2 1 3 . 4 5 6 1 1 . . 4 Indirectly 1 | . . . . . . . . . . . . . . . . . . . . . . . 1 . . . Trap Hack Attempts . | . . . . . . . . . . . . . . . . . . . . . . . . . . . Triggered . | . . . . . . . . . . . . . . . . . . . . . . . . . . . Disarmed . | . . . . . . . . . . . . . . . . . . . . . . . . . . . Reprogrammed 27 | . . . . . . . . . . . 6 . . . 5 . . . . . . 1 9 . 6 . Reused 7 | . . . . . . . . 2 . . 1 . . . . . . . . . . 1 3 . . . Traps Extracted . | . . . . . . . . . . . . . . . . . . . . . . . . . . . Installed 9 | . . 3 . . . . . 6 . . . . . . . . . . . . . . . . . . Triggered 8 | . . . . . . . . 3 . . 1 . . . . . . . . . . 1 3 . . . Exploded 1 | . . . 1 . . . . . . . . . . . . . . . . . . . . . . . Machines | -11 -10 -10 -10 -9 -8 -7 -7 -7 -7 -6 -6 -6 -6 -6 -6 -5 -5 -4 -4 -4 -4 -3 -3 -2 -2 -1 ---------- Run | Scr Mat Min Exi Min Mat Fac Low Low Dat Pro Fac Ext Cet Arc Hub Fac Gar Fac Gar Fac Gar Res Tes Res Qua Acc Machines Disabled 103 | . 2 . 2 . 6 1 . . . . 1 5 2 6 25 2 4 2 4 6 4 2 13 4 7 5 Max in Single Turn 10 | . 2 . 2 . 2 1 . . . . 1 1 1 1 10 1 1 1 1 2 1 1 4 1 1 1 Garrison Access 7 | . . . . . . . . . . . 2 . . . . . . . . . . . 1 . . 4 Garrison Relay 12 | . . . . . . . . . . . . . . . . . 4 . 4 . 4 . . . . . Network Hub 4 | . . . . . . . . . . . . . . . 4 . . . . . . . . . . . Energy Cycler 2 | . . . . . . . . . . . . 2 . . . . . . . . . . . . . . Machines Sabotaged . | . . . . . . . . . . . . . . . . . . . . . . . . . . . Garrisons Compromised . | . . . . . . . . . . . . . . . . . . . . . . . . . . . Overloaded Fab Kills . | . . . . . . . . . . . . . . . . . . . . . . . . . . . Hacking | -11 -10 -10 -10 -9 -8 -7 -7 -7 -7 -6 -6 -6 -6 -6 -6 -5 -5 -4 -4 -4 -4 -3 -3 -2 -2 -1 --------- Run | Scr Mat Min Exi Min Mat Fac Low Low Dat Pro Fac Ext Cet Arc Hub Fac Gar Fac Gar Fac Gar Res Tes Res Qua Acc Machines Accessed 105 | . 3 . . 2 5 6 . . 4 . 10 4 3 1 8 8 . 3 . 7 . 4 11 7 8 11 Terminals 68 | . 2 . . . 4 3 . . . . 5 4 3 . 7 4 . 2 . 6 . 3 8 5 7 5 Fabricators 14 | . . . . . . 2 . . . . 3 . . . . 3 . . . . . 1 2 2 . 1 Repair Stations 2 | . . . . . 1 . . . . . . . . . . . . . . . . . . . 1 . Recycling Units 2 | . 1 . . . . . . . . . . . . . . . . . . . . . . . . 1 Scanalyzers . | . . . . . . . . . . . . . . . . . . . . . . . . . . . Garrison Access 12 | . . . . . . 1 . . . . 2 . . . 1 1 . 1 . 1 . . 1 . . 4 Total Hacks 498 | . 15 . . 2 12 17 . . 28 . 31 12 5 25 25 32 . 10 . 46 . 37 67 37 54 43 Successful 304 | . 7 . . 2 8 10 . . 28 . 22 5 5 25 15 19 . 5 . 18 . 24 45 16 29 21 Failed 194 | . 8 . . . 4 7 . . . . 9 7 . . 10 13 . 5 . 28 . 13 22 21 25 22 Catastrophic 29 | . . . . . . . . . . . . 1 . . 2 2 . 3 . 6 . 2 1 4 7 1 Database Lockouts . | . . . . . . . . . . . . . . . . . . . . . . . . . . . Manual 243 | . 10 . 1 . 8 9 . . . . 15 12 2 . 14 15 . 9 . 32 . 26 30 18 20 22 Terminals 361 | . 12 . . . 8 10 . . . . 16 12 5 . 24 21 . 9 . 45 . 34 54 27 51 33 Fabricators 55 | . . . . . . 5 . . . . 12 . . . . 10 . . . . . 3 11 10 . 4 Repair Stations 7 | . . . . . 4 . . . . . . . . . . . . . . . . . . . 3 . Recycling Units 5 | . 3 . . . . . . . . . . . . . . . . . . . . . . . . 2 Scanalyzers . | . . . . . . . . . . . . . . . . . . . . . . . . . . . Garrison Access 15 | . . . . . . 2 . . . . 3 . . . 1 1 . 1 . 1 . . 2 . . 4 Terminal Hacks 198 | . 7 . . 2 4 4 . . 28 . 5 2 5 25 10 9 . 2 . 12 . 21 25 8 20 9 Record 46 | . . . . . . . . . 11 . . . 4 25 . 1 . . . . . . 1 . 4 . Part Schematic 14 | . . . . . . . . . 10 . 1 . . . . . . . . . . . 3 . . . Robot Schematic 4 | . . . . . . . . . 4 . . . . . . . . . . . . . . . . . Prototype ID Bank 25 | . 3 . . . . . . . 3 . . . . . . 2 . . . 2 . 9 1 2 1 2 Open Door 5 | . . . . 2 . . . . . . . . 1 . . . . . . . . . 1 . 1 . Open DSF 1 | . . . . . . . . . . . . . . . . . . . . . . . . 1 . . Level Access Points 4 | . . . . . . 1 . . . . . . . . 1 . . . . . . . 1 . 1 . Branch Access Points 7 | . . . . . . 1 . . . . 1 . . . . . . . . 1 . 1 1 1 1 . Machine Index 2 | . . . . . . . . . . . . . . . . . . . . . . . . . 1 1 Fabricator Index 1 | . . . . . . . . . . . . . . . . . . . . . . . . . 1 . Recycling Unit Index 1 | . . . . . . . . . . . . . . . . . . . . . . . . . 1 . Garrison Index 1 | . . . . . . . . . . . . . . . . . . . . 1 . . . . . . Alert Level 2 | . . . . . . . . . . . . . . . . . . . . . . 1 . . . 1 Unreport Threat 40 | . 3 . . . 3 2 . . . . 1 2 . . 5 3 . 2 . 5 . 4 3 2 3 2 Locate Traps 2 | . . . . . . . . . . . . . . . . . . . . . . 1 . . . 1 Reprogram Traps 13 | . . . . . . . . . . . 2 . . . 2 . . . . . . 1 6 . 2 . Dispatch Records 1 | . . . . . . . . . . . . . . . . . . . . . . . . . 1 . Security Status 1 | . . . . . . . . . . . . . . . . . . . . . . . 1 . . . Surveillance Status 1 | . . . . . . . . . . . . . . . . . . . . . . . 1 . . . Recall Extermination 2 | . . . . . . . . . . . . . . . 1 1 . . . . . . . . . . Recall Reinforcements 5 | . . . . . 1 . . . . . . . . . . 1 . . . . . 2 . . 1 . Registered Components 2 | . . . . . . . . . . . . . . . . . . . . 1 . . 1 . . . Registered Prototypes 4 | . 1 . . . . . . . . . . . . . . . . . . 1 . 1 . . 1 . Zone Layout 11 | . . . . . . . . . . . . . . . 1 1 . . . 1 . 1 2 2 1 2 Protovariant Controls 3 | . . . . . . . . . . . . . . . . . . . . . . . 3 . . . Fabricator Hacks 19 | . . . . . . 1 . . . . 8 . . . . 5 . . . . . . 3 2 . . Load Schematic 10 | . . . . . . . . . . . 5 . . . . 2 . . . . . . 2 1 . . Build 9 | . . . . . . 1 . . . . 3 . . . . 3 . . . . . . 1 1 . . Repair Station Hacks 6 | . . . . . 4 . . . . . . . . . . . . . . . . . . . 2 . Scan Component 3 | . . . . . 2 . . . . . . . . . . . . . . . . . . . 1 . Repair 3 | . . . . . 2 . . . . . . . . . . . . . . . . . . . 1 . Recycling Unit Hacks 2 | . . . . . . . . . . . . . . . . . . . . . . . . . . 2 Retrieve Matter 2 | . . . . . . . . . . . . . . . . . . . . . . . . . . 2 Scanalyzer . | . . . . . . . . . . . . . . . . . . . . . . . . . . . Garrison Access Hacks 11 | . . . . . . . . . . . 2 . . . . 1 . 1 . 1 . . 2 . . 4 Unlock Access 3 | . . . . . . . . . . . . . . . . 1 . 1 . 1 . . . . . . Seal Access 7 | . . . . . . . . . . . 2 . . . . . . . . . . . 1 . . 4 Coupler Status 1 | . . . . . . . . . . . . . . . . . . . . . . . 1 . . . Unauthorized Hacks 68 | . . . . . . 5 . . . . 7 3 . . 5 4 . 2 . 5 . 3 15 6 7 6 Terminals 56 | . . . . . . 3 . . . . 4 3 . . 5 2 . 2 . 5 . 2 13 4 7 6 Track 5 | . . . . . . . . . . . . . . . . . . . . . . . 3 . 1 1 Assimilate 2 | . . . . . . . . . . . 1 . . . . . . . . . . . . . 1 . Botnet 42 | . . . . . . 3 . . . . 3 3 . . 5 2 . 2 . 5 . 2 6 4 4 3 Disrupt 6 | . . . . . . . . . . . . . . . . . . . . . . . 3 . 1 2 Operators 1 | . . . . . . . . . . . . . . . . . . . . . . . 1 . . . Fabricators 12 | . . . . . . 2 . . . . 3 . . . . 2 . . . . . 1 2 2 . . Prioritize 1 | . . . . . . . . . . . . . . . . . . . . . . . 1 . . . Liberate 11 | . . . . . . 2 . . . . 3 . . . . 2 . . . . . 1 1 2 . . Repair Stations . | . . . . . . . . . . . . . . . . . . . . . . . . . . . Recycling Units . | . . . . . . . . . . . . . . . . . . . . . . . . . . . Scanalyzers . | . . . . . . . . . . . . . . . . . . . . . . . . . . . Garrison Access . | . . . . . . . . . . . . . . . . . . . . . . . . . . . Data Cores Recovered 5 | . . . . . . 1 . . . . 1 . . . . . . 1 . . . . 1 . 1 . Used 2 | . . . . . . . . . . . . . . . . . . 1 . . . . . . 1 . Hacking Detections 72 | . 3 . . . 3 6 . . . . 7 4 2 . 8 5 . 2 . 5 . 4 6 6 5 6 Full Trace Events 10 | . 1 . . . 1 2 . . . . 2 . . . . . . . . . . 1 2 1 . . Feedback Events 2 | . . . . . . 1 . . . . . . . . . . . . . . . . 1 . . . Corruption 2 | . . . . . . 1 . . . . . . . . . . . . . . . . 1 . . . Feedback Blocked . | . . . . . . . . . . . . . . . . . . . . . . . . . . . Robot Schematics Acquired 5 | . . . . . . . . . 4 . . . . . . . . . . . . . . . 1 . Robots Built 9 | . . . . . . . . . . . 3 . . . . 4 . . . . . . 1 1 . . Authchips . | . . . . . . . . . . . . . . . . . . . . . . . . . . . Time 750 | . . . . . . . . . . . 348 . . . . 306 . . . . . . 58 38 . . Total Robot Build Rating 31 | . . . . . . . . . . . 9 . . . . 16 . . . . . . 3 3 . . Part Schematics Acquired 23 | . . . . . . . . . 10 . 1 . . . . . . . . . . . 7 . 5 . Parts Built 1 | . . . . . . 1 . . . . . . . . . . . . . . . . . . . . Authchips . | . . . . . . . . . . . . . . . . . . . . . . . . . . . Time 31 | . . . . . . 31 . . . . . . . . . . . . . . . . . . . . Total Part Build Rating 5 | . . . . . . 5 . . . . . . . . . . . . . . . . . . . . Parts Repaired 3 | . . . . . 2 . . . . . . . . . . . . . . . . . . . 1 . Time 136 | . . . . . 102 . . . . . . . . . . . . . . . . . . . 34 . Parts Recycled . | . . . . . . . . . . . . . . . . . . . . . . . . . . . Recycled Matter . | . . . . . . . . . . . . . . . . . . . . . . . . . . . Retrieved Matter 204 | . . . . . . . . . . . . . . . . . . . . . . . . . . 204 Retrieved Components . | . . . . . . . . . . . . . . . . . . . . . . . . . . . Parts Scanalyzed . | . . . . . . . . . . . . . . . . . . . . . . . . . . . Part Schematics Acquired . | . . . . . . . . . . . . . . . . . . . . . . . . . . . Parts Damaged . | . . . . . . . . . . . . . . . . . . . . . . . . . . . Bothacking | -11 -10 -10 -10 -9 -8 -7 -7 -7 -7 -6 -6 -6 -6 -6 -6 -5 -5 -4 -4 -4 -4 -3 -3 -2 -2 -1 ------------ Run | Scr Mat Min Exi Min Mat Fac Low Low Dat Pro Fac Ext Cet Arc Hub Fac Gar Fac Gar Fac Gar Res Tes Res Qua Acc Used RIF Installer 3 | . . . . . . . . . . . . . . . . . 1 . 1 . 1 . . . . . Threat Obfuscator 2 | . . . . . . . . . . . . . . . . . . . 1 . 1 . . . . . Robots Hacked . | . . . . . . . . . . . . . . . . . . . . . . . . . . . Non-combat . | . . . . . . . . . . . . . . . . . . . . . . . . . . . Combat . | . . . . . . . . . . . . . . . . . . . . . . . . . . . Robot Hacks Applied . | . . . . . . . . . . . . . . . . . . . . . . . . . . . Relay Couplers Released 19 | . . . . . . . . . . . . . . . . . 8 . 6 . 5 . . . . . Machine Destruction 19 | . . . . . . . . . . . . . . . . . 8 . 6 . 5 . . . . . Fabnet Peak Effective % . | . . . . . . . . . . . . . . . . . . . . . . . . . . . Robots Rewired 6 | . . . . . . . . . . . . . . . . . . . . . 6 . . . . . Allies Hacked . | . . . . . . . . . . . . . . . . . . . . . . . . . . . Hacks Repelled . | . . . . . . . . . . . . . . . . . . . . . . . . . . . Allies | -11 -10 -10 -10 -9 -8 -7 -7 -7 -7 -6 -6 -6 -6 -6 -6 -5 -5 -4 -4 -4 -4 -3 -3 -2 -2 -1 -------- Run | Scr Mat Min Exi Min Mat Fac Low Low Dat Pro Fac Ext Cet Arc Hub Fac Gar Fac Gar Fac Gar Res Tes Res Qua Acc Total Allies 34 | . . . . 3 . . . . . 1 3 9 . . . 4 . . . 3 6 . 1 4 . . Largest Group 8 | . . . . 3 3 . . . . 1 3 8 3 . . 3 2 . . 3 6 . 1 3 . . Highest-Rated Group 228 | . . . . 40 40 . . . . 96 96 228 65 . . 108 44 . . 138 170 . 26 144 . . Highest-Rated Ally 96 | . . . . 16 16 . . . . 96 96 39 25 . . 41 26 . . 46 30 . 26 48 . . Total Orders . | . . . . . . . . . . . . . . . . . . . . . . . . . . . Ally Attacks 201 | . . . . 11 46 . . . . 6 13 26 . . . 7 . . . 47 14 . . 31 . . Total Damage 4681 | . . . . 119 371 . . . . 254 392 540 . . . 183 . . . 1309 394 . . 1119 . . Kills 30 | . . . . 2 6 . . . . 1 4 5 . . . . . . . 6 2 . . 4 . . Allies Corrupted . | . . . . . . . . . . . . . . . . . . . . . . . . . . . Allies Melted 1 | . . . . . . . . . . . . 1 . . . . . . . . . . . . . . Intel | -11 -10 -10 -10 -9 -8 -7 -7 -7 -7 -6 -6 -6 -6 -6 -6 -5 -5 -4 -4 -4 -4 -3 -3 -2 -2 -1 ------- Run | Scr Mat Min Exi Min Mat Fac Low Low Dat Pro Fac Ext Cet Arc Hub Fac Gar Fac Gar Fac Gar Res Tes Res Qua Acc Robot Analysis Total . | . . . . . . . . . . . . . . . . . . . . . . . . . . . Derelict Logs Recovered 4 | . . 1 . 1 . . 1 1 . . . . . . . . . . . . . . . . . . Drone Launches . | . . . . . . . . . . . . . . . . . . . . . . . . . . . Drone Recoveries . | . . . . . . . . . . . . . . . . . . . . . . . . . . . Exploration | -11 -10 -10 -10 -9 -8 -7 -7 -7 -7 -6 -6 -6 -6 -6 -6 -5 -5 -4 -4 -4 -4 -3 -3 -2 -2 -1 ------------- Run | Scr Mat Min Exi Min Mat Fac Low Low Dat Pro Fac Ext Cet Arc Hub Fac Gar Fac Gar Fac Gar Res Tes Res Qua Acc Turns Passed 22413 | 164 299 257 406 467 774 651 435 352 118 284 1204 1453 586 317 1304 902 746 655 751 1133 1695 611 1410 1417 398 3624 Spaces Moved 14182 | 102 206 180 300 351 364 392 346 231 89 216 626 935 314 196 855 660 537 509 555 839 820 423 1086 943 270 1837 Core 5 | 5 . . . . . . . . . . . . . . . . . . . . . . . . . . Treads . | . . . . . . . . . . . . . . . . . . . . . . . . . . . Legs 14177 | 97 206 180 300 351 364 392 346 231 89 216 626 935 314 196 855 660 537 509 555 839 820 423 1086 943 270 1837 Wheels . | . . . . . . . . . . . . . . . . . . . . . . . . . . . Hover . | . . . . . . . . . . . . . . . . . . . . . . . . . . . Flight . | . . . . . . . . . . . . . . . . . . . . . . . . . . . Fastest Speed 50 | 50 120 120 120 120 120 126 126 126 126 126 125 125 125 125 100 100 100 100 100 100 100 100 98 98 108 112 Average Speed 117 | 116 120 120 124 120 125 126 126 126 126 126 125 125 125 125 122 100 100 100 100 100 164 123 103 109 110 117 Slowest Speed 190 | 120 120 120 190 120 130 126 126 126 126 126 126 125 125 125 125 100 100 100 100 100 170 170 170 178 112 190 Overloaded Moves . | . . . . . . . . . . . . . . . . . . . . . . . . . . . Propulsion Burnouts . | . . . . . . . . . . . . . . . . . . . . . . . . . . . Robots Hopped . | . . . . . . . . . . . . . . . . . . . . . . . . . . . Cave-ins Triggered . | . . . . . . . . . . . . . . . . . . . . . . . . . . . Exploration Rate (%) 52 | 7 36 58 61 78 29 14 73 49 72 37 21 97 92 94 75 26 68 17 84 30 87 24 93 27 28 53 Regions Visited 26 Branch Regions 13 Pre-discovered Areas 2 | . . 1 . . . . . . 1 . . . . . . . . . . . . . . . . . Known Exits Taken 23 | 1 1 1 1 1 1 1 1 1 1 1 1 1 1 1 1 1 . 1 . 1 . 1 1 1 1 . Unknown Exits Taken . | . . . . . . . . . . . . . . . . . . . . . . . . . . . Scrap Searched 9 | . . . . 1 . . 3 2 . 3 . . . . . . . . . . . . . . . . Spaces Dug 19 | . . . . . . . . . . . . . . . . . . . . 10 . 2 . 1 3 3 Terrain Destroyed 1434 | . 8 . 11 1 12 . . 2 . . 1 10 176 1 690 6 4 10 21 82 61 23 76 87 15 137 Melee . | . . . . . . . . . . . . . . . . . . . . . . . . . . . Projectile 500 | . . . . 1 . . . 1 . . 1 10 . . 13 6 4 10 21 66 61 23 76 87 15 105 AOE 929 | . 8 . 11 . 12 . . . . . . . 176 . 675 . . . . 16 . . . . . 31 Terrain Rammed . | . . . . . . . . . . . . . . . . . . . . . . . . . . . Walls Destroyed . | . . . . . . . . . . . . . . . . . . . . . . . . . . . Machines Disabled . | . . . . . . . . . . . . . . . . . . . . . . . . . . . Actions | -11 -10 -10 -10 -9 -8 -7 -7 -7 -7 -6 -6 -6 -6 -6 -6 -5 -5 -4 -4 -4 -4 -3 -3 -2 -2 -1 --------- Run | Scr Mat Min Exi Min Mat Fac Low Low Dat Pro Fac Ext Cet Arc Hub Fac Gar Fac Gar Fac Gar Res Tes Res Qua Acc Total 17809 | 121 229 201 330 376 612 481 345 272 96 222 956 1106 414 235 996 836 629 580 650 996 1014 468 1258 1112 336 2938 Wait 1694 | . 2 3 6 9 132 31 . 1 . . 241 65 31 . 30 94 23 7 20 54 26 9 33 47 42 788 Move 14153 | 101 205 179 299 350 363 391 345 230 88 215 625 934 313 195 854 659 535 508 553 838 818 422 1085 942 269 1837 Hop . | . . . . . . . . . . . . . . . . . . . . . . . . . . . Pick Up 41 | . 1 1 2 . 3 . . 2 . . 4 5 1 1 4 1 . 3 2 2 1 2 2 1 2 1 Fast Attach 136 | 8 . . 4 2 15 2 . . 3 2 5 5 1 . 14 6 1 1 1 10 3 2 26 9 3 13 Attach 22 | . . . 5 . 3 1 . . . . . 2 . . 1 3 . 1 1 . . . 1 2 1 1 Detach 39 | . . . 5 . 7 2 . . 2 1 1 1 1 . 2 5 . 1 1 . . . 6 3 . 1 Swap 32 | . 1 1 . . 6 2 . . . . 1 1 4 1 1 1 . 1 . 3 1 3 . 2 . 3 Drop 139 | . 1 2 5 1 15 4 . 1 3 1 7 9 4 1 12 6 . 3 2 9 5 5 28 7 5 3 Fire 884 | 12 16 11 4 10 36 37 . 11 . 3 41 49 36 16 45 29 47 31 40 49 58 17 44 79 13 150 Melee . | . . . . . . . . . . . . . . . . . . . . . . . . . . . Ram . | . . . . . . . . . . . . . . . . . . . . . . . . . . . Kick 48 | . . 1 . 1 3 . . . . . 2 . . 1 7 3 . 5 . 1 . 1 . . 1 22 Crush . | . . . . . . . . . . . . . . . . . . . . . . . . . . . Escape Stasis 56 | . . . . . . . . . . . . 3 . . . . 3 . 8 . 20 . . . . 22 Rewire 37 | . . . . . . . . . . . . 1 . . . . 1 . . . 35 . . . . . Trap 9 | . . 3 . . . . . 6 . . . . . . . . . . . . . . . . . . Miscellaneous 519 | . 3 . . 3 29 11 . 21 . . 29 31 23 20 26 29 19 19 22 30 47 7 33 20 . 97 Route ------- -11/Scrapyard -10/Materials -10/Mines (discovered 2 exits: *Mat / *Exi) -10/Exiles (discovered 2 exits: *Min x2) -9/Mines (discovered 2 exits: *Mat x2) -8/Materials (discovered 2 exits: *Fac x2) -7/Factory (discovered 7 exits: Fac x4 / Sto / *Low x2) -7/Lower Caves -7/Lower Caves -7/Data Miner -6/Proximity Caves -6/Factory (discovered 5 exits: Fac / Low x2 / *Ext x2) -6/Extension (discovered 3 exits: *Fac x2 / *Cet) -6/Cetus (discovered 3 exits: *Fac x2 / *Arc) -6/Archives (discovered 3 exits: *Fac / *Hub x2) -6/Hub_04(d) (discovered 4 exits: *Fac x4) -5/Factory (discovered 3 exits: *Fac / Upp / Gar) -5/Garrison (discovered 3 exits: *Fac x3) -4/Factory -4/Garrison (discovered 3 exits: *Fac x3) -4/Factory (discovered 3 exits: *Upp x2 / Gar) -4/Garrison (discovered 3 exits: *Res x3) -3/Research (discovered 4 exits: Res / Arm / *Tes x2) -3/Testing -2/Research (discovered 2 exits: *Qua x2) -2/Quarantine -1/Access (discovered 2 exits: Sur / Com) History --------- Turn | Location | Event 1 | -11/Scrapyard | Upgraded with Propulsion slot (x1) 1 | -11/Scrapyard | Upgraded with Utility slot (x2) 1 | -11/Scrapyard | Upgraded with Weapon slot (x2) 2 | -11/Scrapyard | Met Revision 17 5 | -11/Scrapyard | Identified exit to Materials 5 | -11/Scrapyard | Discovered exit to Materials (range 16) 165 | -11/Scrapyard | Entered Materials 315 | -10/Materials | Identified exit to Mines 315 | -10/Materials | Discovered exit to Mines (range 11) 318 | -10/Materials | Build established: Hacker-Mutant 464 | -10/Materials | Entered Mines 476 | -10/Mines | Identified exit to Materials 476 | -10/Mines | Discovered exit to Materials (range 7) 545 | -10/Mines | Found a hidden stash of uninstalled traps 576 | -10/Mines | Learned location of Zion (-6) 714 | -10/Mines | Identified exit to Exiles 714 | -10/Mines | Discovered exit to Exiles (range 6) 716 | -10/Mines | Deemed a non-threat by the Exiles lab entrance 721 | -10/Mines | Entered Exiles 723 | -10/Exiles | Reached level 2 725 | -10/Exiles | Upgraded with Utility slot (x1) 737 | -10/Exiles | Identified exit to Mines 737 | -10/Exiles | Discovered exit to Mines (range 17) 749 | -10/Exiles | Met 8R-AWN 771 | -10/Exiles | Met EX-HEX 805 | -10/Exiles | Met EX-BIN 822 | -10/Exiles | Aligned with FarCom system 823 | -10/Exiles | Given EX-Vault access code 852 | -10/Exiles | Opened EX-Vault 860 | -10/Exiles | Found Prototype Device 860 | -10/Exiles | Identified Cloak of Protection 868 | -10/Exiles | Found Prototype Energy Cannon 868 | -10/Exiles | Identified Firepult 877 | -10/Exiles | Found Prototype Energy Cannon 877 | -10/Exiles | Identified YOLO Cannon 911 | -10/Exiles | Exiles lab attacked by MAIN.C 1024 | -10/Exiles | Build established: Scavenger-Skirmisher 1058 | -10/Exiles | Core integrity fell below 50% 1103 | -10/Exiles | Core integrity fell below 20% 1117 | -10/Exiles | Discovered exit to Mines (range 10) 1127 | -10/Exiles | Stole two prototypes: Cloak of Protection, Firepult 1127 | -10/Exiles | Entered Mines 1164 | -9/Mines | Received a Rocket Launcher from a helpful Derelict 1176 | -9/Mines | Assembled infested the area 1181 | -9/Mines | Assisted by a Guerilla fighting off Assembled 1185 | -9/Mines | Found the Drone Emporium 1259 | -9/Mines | Assisted by bots powering up and referring to "LRC-V3" 1354 | -9/Mines | Learned location of 1 exit from Materials 1410 | -9/Mines | Met a Derelict shopkeep closing up shop 1472 | -9/Mines | Identified exit to Materials 1472 | -9/Mines | Discovered exit to Materials (range 15) 1574 | -9/Mines | Discovered exit to Materials (range 13) 1594 | -9/Mines | Entered Materials 1594 | -8/Materials | Accompanied by 3 allies 1595 | -8/Materials | Identified exit to Factory 1595 | -8/Materials | Core integrity fell below 50% 1595 | -8/Materials | Core integrity fell below 20% 1596 | -8/Materials | Reached level 3 1596 | -8/Materials | Reached level 4 1596 | -8/Materials | Reached level 5 1596 | -8/Materials | Reached level 6 1596 | -8/Materials | Upgraded with Utility slot (x1) 1683 | -8/Materials | Reached level 7 1924 | -8/Materials | Repaired Tractor Beam 2059 | -8/Materials | Repaired Broken Enh. Autogun 2148 | -8/Materials | Upgraded with Power slot (x1) 2148 | -8/Materials | Upgraded with Propulsion slot (x1) 2172 | -8/Materials | Reached level 8 2221 | -8/Materials | Discovered exit to Factory (range 17) 2246 | -8/Materials | Build established: Hacker-Skirmisher 2368 | -8/Materials | Entered Factory 2370 | -7/Factory | FarCom data flow suspended 2370 | -7/Factory | Reached level 9 2370 | -7/Factory | Reached level 10 2439 | -7/Factory | Identified exit to Factory 2439 | -7/Factory | Identified exit to Storage 2439 | -7/Factory | Identified exit to Lower Caves 2539 | -7/Factory | Upgraded with Utility slot (x1) 2539 | -7/Factory | Upgraded with Weapon slot (x1) 2570 | -7/Factory | Fabricated Imp. Target Analyzer (x1) 2818 | -7/Factory | Garrison activated, responded to threat 2841 | -7/Factory | Reached level 11 2883 | -7/Factory | Build established: Scavenger-Skirmisher 3019 | -7/Factory | Entered Lower Caves 3275 | -7/Lower Caves | Encountered a Warlord checkpoint 3408 | -7/Lower Caves | Identified exit to Lower Caves 3454 | -7/Lower Caves | Entered another Lower Caves area 3662 | -7/Lower Caves | Learned Factory emergency access door positions 3666 | -7/Lower Caves | Reached level 12 3792 | -7/Lower Caves | Identified exit to Data Miner 3792 | -7/Lower Caves | Discovered exit to Data Miner (range 13) 3806 | -7/Lower Caves | Entered Data Miner 3806 | -7/Data Miner | Identified exit to Proximity Caves 3806 | -7/Data Miner | Discovered exit to Proximity Caves (range 6) 3830 | -7/Data Miner | Met Data Miner 3863 | -7/Data Miner | Learned location of Section 7 (-2) 3863 | -7/Data Miner | Acquired the access code to Warlord's prototype stash 3885 | -7/Data Miner | Received God Mode back door access code from Data Miner 3924 | -7/Data Miner | Entered Proximity Caves 3926 | -6/Proximity Caves | Reached level 13 3951 | -6/Proximity Caves | Spotted B-75 Beast 3953 | -6/Proximity Caves | Escorted by Enhanced Grunt 3975 | -6/Proximity Caves | Allies destroyed B-75 Beast 4185 | -6/Proximity Caves | Discovered exit to Factory (range 18) 4208 | -6/Proximity Caves | Entered Factory 4208 | -6/Factory | Accompanied by 1 ally 4210 | -6/Factory | Reached level 14 4210 | -6/Factory | Upgraded with Propulsion slot (x1) 4333 | -6/Factory | Reached level 15 4670 | -6/Factory | Fabricated O-24 Administrator (x1) 4778 | -6/Factory | Incoming investigation squad redirected 4785 | -6/Factory | Build established: Scavenger-Gunner 4872 | -6/Factory | Identified exit to Factory 4872 | -6/Factory | Discovered exit to Factory (range 16) 4948 | -6/Factory | Fabricated O-24 Administrator? 4966 | -6/Factory | Fabricated O-24 Administrator? 5080 | -6/Factory | Identified exit to Lower Caves 5080 | -6/Factory | Identified exit to Extension 5156 | -6/Factory | Reached level 16 5266 | -6/Factory | Incoming investigation squad redirected 5412 | -6/Factory | Entered Extension 5412 | -6/Extension | Accompanied by 2 allies 5414 | -6/Extension | Reached level 17 5415 | -6/Extension | Upgraded with Utility slot (x1) 5419 | -6/Extension | Disrupted transfer network 5491 | -6/Extension | Rescued a captive Derelict 5492 | -6/Extension | Rescued a captive Derelict 5504 | -6/Extension | Rescued a captive Derelict 5504 | -6/Extension | Rescued a captive Derelict 5713 | -6/Extension | Rescued a captive Derelict 5714 | -6/Extension | Rescued a captive Derelict 5762 | -6/Extension | Spotted B-75 Beast 5804 | -6/Extension | Energy Cycler disabled 5804 | -6/Extension | Rescued a captive Derelict 5805 | -6/Extension | Rescued a captive Derelict 5808 | -6/Extension | Destroyed B-75 Beast 5812 | -6/Extension | Rescued a captive Derelict 5819 | -6/Extension | Discovered exit to Factory (range 19) 5819 | -6/Extension | Spotted B-75 Beast 5832 | -6/Extension | Destroyed B-75 Beast 5915 | -6/Extension | Reached level 18 5952 | -6/Extension | Extracted ID and sensor layout for unrecognized location from A7's data core 5981 | -6/Extension | Found Prototype Protection 6190 | -6/Extension | Identified exit to Cetus 6190 | -6/Extension | Discovered exit to Cetus (range 15) 6200 | -6/Extension | Discovered exit to Factory (range 10) 6693 | -6/Extension | Upgraded with Utility slot (x1) 6865 | -6/Extension | Entered Cetus 6865 | -6/Cetus | Accompanied by 3 allies 6883 | -6/Cetus | Spotted Cetus Guard 6883 | -6/Cetus | Spotted Cetus Guard 6883 | -6/Cetus | Spotted Cetus Guard 6883 | -6/Cetus | Spotted Cetus Guard 6901 | -6/Cetus | Destroyed Cetus Guard 6912 | -6/Cetus | Destroyed Cetus Guard 6923 | -6/Cetus | Destroyed Cetus Guard 6926 | -6/Cetus | Destroyed Cetus Guard 6987 | -6/Cetus | Discovered exit to Factory (range 19) 7146 | -6/Cetus | Cetus Manufacturing Module disabled 7220 | -6/Cetus | Identified exit to Archives 7220 | -6/Cetus | Discovered exit to Archives (range 19) 7248 | -6/Cetus | Spotted Cetus Guard 7248 | -6/Cetus | Spotted Cetus Guard 7248 | -6/Cetus | Spotted Cetus Guard 7248 | -6/Cetus | Spotted Cetus Guard 7252 | -6/Cetus | Discovered exit to Factory (range 19) 7275 | -6/Cetus | Destroyed Cetus Guard 7275 | -6/Cetus | Destroyed Cetus Guard 7291 | -6/Cetus | Reached level 19 7291 | -6/Cetus | Destroyed Cetus Guard 7294 | -6/Cetus | Destroyed Cetus Guard 7308 | -6/Cetus | Met Revision 17 7451 | -6/Cetus | Entered Archives 7590 | -6/Archives | Unable to access archive contents 7595 | -6/Archives | Discovered exit to Factory (range 15) 7611 | -6/Archives | Identified exit to Hub_04(d) 7611 | -6/Archives | Discovered exit to Hub_04(d) (range 17) 7626 | -6/Archives | Unable to access archive contents 7637 | -6/Archives | Discovered exit to Hub_04(d) (range 18) 7644 | -6/Archives | Unable to access archive contents 7657 | -6/Archives | Unable to access archive contents 7768 | -6/Archives | Entered Hub_04(d) 7769 | -6/Hub_04(d) | Discovered exit to Factory (range 19) 7773 | -6/Hub_04(d) | Garrison activated, responded to threat 7987 | -6/Hub_04(d) | Garrison activated, responded to threat 8110 | -6/Hub_04(d) | Disrupted transfer network 8152 | -6/Hub_04(d) | Discovered exit to Factory (range 10) 8187 | -6/Hub_04(d) | Spotted B-75 Beast 8202 | -6/Hub_04(d) | Destroyed B-75 Beast 8277 | -6/Hub_04(d) | Discovered exit to Factory (range 18) 8393 | -6/Hub_04(d) | Discovered exit to Factory (range 17) 8574 | -6/Hub_04(d) | Reached level 20 8702 | -6/Hub_04(d) | Build established: Scavenger-Skirmisher 8720 | -6/Hub_04(d) | Network Hub disabled 8759 | -6/Hub_04(d) | Network Hub disabled 8773 | -6/Hub_04(d) | Spotted Lightning 8778 | -6/Hub_04(d) | Spotted Lightning 8788 | -6/Hub_04(d) | Spotted Lightning 8898 | -6/Hub_04(d) | Network Hub disabled 8898 | -6/Hub_04(d) | Spotted Lightning 8904 | -6/Hub_04(d) | Spotted Lightning 8910 | -6/Hub_04(d) | Spotted Lightning 8932 | -6/Hub_04(d) | Destroyed Lightning 8950 | -6/Hub_04(d) | Destroyed Lightning 8953 | -6/Hub_04(d) | Destroyed Lightning 8963 | -6/Hub_04(d) | Found Prototype Processor 8963 | -6/Hub_04(d) | Identified Exp. Targeting Computer 8979 | -6/Hub_04(d) | Found Prototype Device 8979 | -6/Hub_04(d) | Identified Exp. EM Disruption Field 9049 | -6/Hub_04(d) | Spotted Lightning 9053 | -6/Hub_04(d) | Spotted Lightning 9055 | -6/Hub_04(d) | Network Hub disabled 9055 | -6/Hub_04(d) | Spotted Lightning 9058 | -6/Hub_04(d) | Core integrity fell below 50% 9072 | -6/Hub_04(d) | Entered Factory 9073 | -5/Factory | Core integrity fell below 50% 9170 | -5/Factory | Identified Med. Regenerative Plating 9384 | -5/Factory | Identified exit to Factory 9384 | -5/Factory | Discovered exit to Factory (range 16) 9496 | -5/Factory | Identified exit to Upper Caves 9496 | -5/Factory | Discovered exit to Upper Caves (range 19) 9502 | -5/Factory | Reached level 21 9725 | -5/Factory | Upgraded with Utility slot (x1) 9808 | -5/Factory | Fabricated H-66 Slayer? 9808 | -5/Factory | Fabricated O-24 Administrator? 9844 | -5/Factory | Identified exit to Garrison 9895 | -5/Factory | Fabricated O-24 Administrator? 9974 | -5/Factory | Entered Garrison 9974 | -5/Garrison | Accompanied by 2 allies 9979 | -5/Garrison | Installed Relay Interface Framework 10020 | -5/Garrison | Triggered checkpoint 10024 | -5/Garrison | Build established: Scavenger-Gunner 10038 | -5/Garrison | Garrison Relay disabled 10105 | -5/Garrison | Spotted B-75 Beast 10125 | -5/Garrison | Destroyed B-75 Beast 10163 | -5/Garrison | Reached level 22 10164 | -5/Garrison | Triggered checkpoint 10208 | -5/Garrison | Triggered checkpoint 10212 | -5/Garrison | Triggered checkpoint 10310 | -5/Garrison | Discovered exit to Factory (range 16) 10325 | -5/Garrison | Destroyed 11 combat bots 10360 | -5/Garrison | Triggered checkpoint 10383 | -5/Garrison | Garrison Relay disabled 10456 | -5/Garrison | Discovered exit to Factory (range 9) 10492 | -5/Garrison | Triggered checkpoint 10504 | -5/Garrison | Garrison Relay disabled 10616 | -5/Garrison | Triggered checkpoint 10663 | -5/Garrison | Garrison Relay disabled 10707 | -5/Garrison | Discovered exit to Factory (range 9) 10720 | -5/Garrison | Entered Factory 10722 | -4/Factory | Reached level 23 10771 | -4/Factory | Upgraded with Utility slot (x1) 10892 | -4/Factory | Reached level 24 11374 | -4/Factory | Identified exit to Garrison 11375 | -4/Factory | Entered Garrison 11398 | -4/Garrison | Triggered checkpoint 11424 | -4/Garrison | Garrison Relay disabled 11475 | -4/Garrison | Reached level 25 11478 | -4/Garrison | Upgraded with Weapon slot (x1) 11517 | -4/Garrison | Triggered checkpoint 11534 | -4/Garrison | Destroyed 8 combat bots 11598 | -4/Garrison | Triggered checkpoint 11621 | -4/Garrison | Identified exit to Factory 11621 | -4/Garrison | Discovered exit to Factory (range 9) 11635 | -4/Garrison | Expanded RIF knowledge: Threat Obfuscation 11664 | -4/Garrison | Triggered checkpoint 11718 | -4/Garrison | Garrison Relay disabled 11774 | -4/Garrison | Triggered checkpoint 11839 | -4/Garrison | Garrison Relay disabled 11852 | -4/Garrison | Triggered checkpoint 11930 | -4/Garrison | Discovered exit to Factory (range 9) 12014 | -4/Garrison | Discovered exit to Factory (range 13) 12036 | -4/Garrison | Triggered checkpoint 12088 | -4/Garrison | Garrison Relay disabled 12126 | -4/Garrison | Entered Factory 12257 | -4/Factory | Found Exp. Signal Interpreter 12376 | -4/Factory | First assault squad dispatched 12404 | -4/Factory | Incoming assault squad redirected 12511 | -4/Factory | Allied Derelicts emerged from ambush trap array 12565 | -4/Factory | Reached level 26 12568 | -4/Factory | Upgraded with Power slot (x1) 12956 | -4/Factory | Identified exit to Upper Caves 13258 | -4/Factory | Identified exit to Garrison 13259 | -4/Factory | Entered Garrison 13274 | -4/Garrison | Expanded RIF knowledge: Threat Obfuscation 13358 | -4/Garrison | Destroyed 7 combat bots 13601 | -4/Garrison | Garrison Relay disabled 13636 | -4/Garrison | Triggered checkpoint 13642 | -4/Garrison | Triggered checkpoint 13846 | -4/Garrison | Triggered checkpoint 13980 | -4/Garrison | Triggered checkpoint 13988 | -4/Garrison | Triggered checkpoint 14074 | -4/Garrison | Triggered checkpoint 14172 | -4/Garrison | Triggered checkpoint 14216 | -4/Garrison | Garrison Relay disabled 14298 | -4/Garrison | Identified exit to Research 14298 | -4/Garrison | Discovered exit to Research (range 9) 14402 | -4/Garrison | Triggered checkpoint 14454 | -4/Garrison | Triggered checkpoint 14519 | -4/Garrison | Garrison Relay disabled 14536 | -4/Garrison | Triggered checkpoint 14637 | -4/Garrison | Discovered exit to Research (range 14) 14793 | -4/Garrison | Discovered exit to Research (range 12) 14810 | -4/Garrison | Triggered checkpoint 14860 | -4/Garrison | Garrison Relay disabled 14954 | -4/Garrison | Entered Research 14956 | -3/Research | Reached level 27 14975 | -3/Research | Found Prototype Launcher 14980 | -3/Research | Identified Tactical Quantum Warhead 15359 | -3/Research | Identified exit to Research 15359 | -3/Research | Discovered exit to Research (range 22) 15360 | -3/Research | Incoming investigation squad redirected 15479 | -3/Research | Reached level 28 15490 | -3/Research | Identified exit to Armory 15490 | -3/Research | Identified exit to Testing 15528 | -3/Research | Spotted B-86 Titan 15565 | -3/Research | Entered Testing 15893 | -3/Testing | Upgraded with Propulsion slot (x1) 15993 | -3/Testing | Spotted Striker 16009 | -3/Testing | Spotted Striker 16023 | -3/Testing | Found Prototype Device 16023 | -3/Testing | Identified Exp. Shield Generator 16095 | -3/Testing | Incoming investigation squad redirected 16205 | -3/Testing | Found Prototype Protection 16205 | -3/Testing | Identified SHELL Armor 16401 | -3/Testing | Found Prototype Device 16401 | -3/Testing | Identified AEGIS Remote Shield 16469 | -3/Testing | Fabricated O-24 Administrator? 16502 | -3/Testing | Build established: Scavenger-Skirmisher 16975 | -3/Testing | Entered Research 16975 | -2/Research | Accompanied by 1 ally 16977 | -2/Research | Reached level 29 16977 | -2/Research | Reached level 30 17188 | -2/Research | Found Prototype Processor 17188 | -2/Research | Identified Exp. Core Analyzer 17232 | -2/Research | Build established: Generator-Skirmisher 17310 | -2/Research | Fabricated O-24 Administrator? 17354 | -2/Research | Identified exit to Quarantine 17823 | -2/Research | Reached level 31 18026 | -2/Research | Upgraded with Utility slot (x1) 18392 | -2/Research | Entered Quarantine 18485 | -2/Quarantine | Identified exit to Access 18539 | -2/Quarantine | Spotted Alpha 7 18555 | -2/Quarantine | Destroyed Alpha 7 18571 | -2/Quarantine | Found Prototype Ballistic Gun 18599 | -2/Quarantine | Found Alien Launcher 18616 | -2/Quarantine | Identified Multirail 18686 | -2/Quarantine | Repaired Lgt. Particle Reactor 18758 | -2/Quarantine | Scanned by Researcher 18790 | -2/Quarantine | Entered Access 18792 | -1/Access | Reached level 32 18792 | -1/Access | Reached level 33 19154 | -1/Access | Garrison activated, responded to threat 20220 | -1/Access | Identified exit to Surface 20220 | -1/Access | Discovered exit to Surface (range 15) 20328 | -1/Access | Spotted B-99 Colossus 20377 | -1/Access | Incoming investigation squad redirected 20998 | -1/Access | Identified exit to Command 20998 | -1/Access | Discovered exit to Command (range 24) 21237 | -1/Access | Destroyed 7 combat bots 21272 | -1/Access | Reached level 34 21276 | -1/Access | Garrison activated, responded to threat 21299 | -1/Access | Spotted B-99 Colossus 21399 | -1/Access | Spotted B-99 Colossus 21430 | -1/Access | Spotted B-99 Colossus 21447 | -1/Access | Core integrity fell below 50% 21835 | -1/Access | Upgraded with Utility slot (x1) 21977 | -1/Access | Maximum security lockdown engaged 22128 | -1/Access | Build established: Generator-Gunner 22234 | -1/Access | Destroyed 14 combat bots 22257 | -1/Access | Destroyed Executioner 22262 | -1/Access | Spotted Executioner 22267 | -1/Access | Spotted Investigator 22270 | -1/Access | Destroyed Investigator 22273 | -1/Access | Spotted Striker 22273 | -1/Access | Spotted Executioner 22279 | -1/Access | Spotted Executioner 22306 | -1/Access | Destroyed 7 combat bots 22307 | -1/Access | Reached level 35 22392 | -1/Access | Spotted Investigator 22392 | -1/Access | Spotted Striker 22396 | -1/Access | Core integrity fell below 20% 22401 | -1/Access | Spotted Striker 22401 | -1/Access | Spotted Executioner 22401 | -1/Access | Spotted Striker 22414 | -1/Access | Destroyed by G-73 Enforcer with Heavy Laser Last Messages --------------- 22412_ Acquired 3 matter. 22412_ Acquired 6 matter. 22412_ P-80 Master stasis bubble strength at 158. 22412_ Held in stasis. 22412_ Investigator is analyzing... 22412_ P-80 Master stasis bubble strength at 95. 22412_ M-36 Artificer stasis bubble strength at 20. 22412_ Investigator knocked back. 22412_ Slug penetrates Investigator. 22412_ Investigator Prototype Special Weapon blasted off. 22412_ B-74 Champion stasis bubble strength at 20. 22412_ I-47 Archangel stasis bubble strength at 30. 22413_ P-80 Master stasis bubble strength at 151. 22413_ P-80 Master stasis bubble strength at 88. 22413_ B-74 Champion stasis bubble bursts. 22413_ Striker stasis bubble strength at 150. 22413_ I-47 Archangel stasis bubble strength at 20. 22414_ K-01 Serf collects debris. 22414_ P-80 Master stasis bubble strength at 144. 22414_ T-07 Excavator stasis bubble strength at 130. Map ----- +----------------------------------------------------+ | ##################### ?? ? ???????????????????? | | #######??############?? ???""? ????????????????? | | ###?###??#?#?#####?##? ? ""?""?""???????????????? | | ??################### ?"""""?"???????????????? | | #?#?## ? ? ####?## """"?? ??????????????? | | #####? ######? ? ? ????????????? | | ##### # # ?? ? ?#??????????? | | ? ####? ###?### ? ? ??#???????????? | | ###### #?##?####?##?##??###??###? ????????? | | ###### ######??##### ??? ##??????? | | # ? ?#### ?? ? ## ? ? ?###?#####?#?????? | | # ####? ## ##?##???#????????? | | + #### ? ## ?#####??####??????? | | ## ############# ? ? ? #####??#?##??????? | | ## ####### # ## #######???### ???? | | ## # #? ? # ? ????#????? | | ## ! # ??#? # ????? ??? | | ## gg # ?## # "" ? ?##? ??? | | #########/## # ???# ? # """ ? ##?? ??? | | ### " ##Y l## ## +???R ###? ???? | | ### """ ##ggg## #? # ?""" ??##??? ??? | | ### """ ##Ygg#####/##### # "?" ????? ??? | | ### " ##gK ## pbEmK## # ????#??????? | | ### ## E;#t pm g # ? ???? ? ?? | | ### ## l gg"gggpl #?#???#?###?? ???? | | ### ## m ggm"bggg@ ###?##?#?##? ??? | | ### ? ? ## legggpg #?####???## ?? ??? | | ### ####p##gg% mgg% ##?#?#?#?## ? ??? | | ############ g # gl ###;####?####????# ???? | | ####### #### ###i K;##?? % ??###??##?##???? | | #!%=!% ## ##; %;#? c ?#?####?#?#???#? | | %[]=%]= ## ##; %##? ?"% + ????? ????? | | #%%%!% !||## ##; k###? """% # ? ? ?? ???## | | # *%! !||## ### % ### ?"" #? ? ? ??### | | # " !| ## ### #?? ?"? ? ; ? ??? ? ? | | # ## ###%%%##? ? #######?##?##### | | # ## ###%""### ? ? ##?########?#### | | # ? ## K ###o #?#? ? ?#######?######## | | #####+##+### g ### #####?###?#########?###### | | ### ### ##??#?##?#################" | | ##?##### ######+####b ########?######## | | ######## ###### #### i ################# | | ######## ###### #### ################# | | ######## ###### ##?# #?############### | | ######## ######k### ? ?############### ? | | ##### ### T" ############?### | | "" A ? ?+ | | ###################?? ?#########?###### | | ##?## ##### ###?############ | | ##### ###########?############## | +----------------------------------------------------+ Best States ------------- Heat Dissipation 115 Energy Generation 86 Energy Capacity 900 Matter Stores 950 Matter Capacity 950 Sight Range 20 Robot Scan Range 22 Terrain Scan Range 24 Terrain Scan Density 310 Cloak Strength 5 Armor Coverage 900 Resistance: KI 65 Resistance: TH 40 Resistance: EX 40 Resistance: EM 100 Resistance: I 35 Resistance: S 35 Resistance: P 35 Evasion (%) 55 Target Analysis 8 Armor Integrity Analysis 30 Recoil Reduction 6 Kinecelleration 40 Offensive Hacking 30 Item Schematics ----------------- Combat Drone Bay | -7/Data Miner | Free Lgt. Regenerative Plating | -7/Data Miner | Free Biomechanical Wings | -7/Data Miner | Free Gravity Neutralizer | -7/Data Miner | Free Scatter Rocket Array | -7/Data Miner | Free Antigrav System | -7/Data Miner | Free Imp. Component Analysis Suite | -7/Data Miner | Free Wave Gun | -7/Data Miner | Free Energy Well | -7/Data Miner | Free Remote Force Field | -7/Data Miner | Free Gauss Rifle | -6/Factory | Hacked Hvy. Gauss Cannon | -3/Testing | Hacked Imp. Lightning Gun | -3/Testing | Archive Adv. EM Disruption Field | -3/Testing | Archive Hdn. Centrium Wheel | -3/Testing | Archive Coolant Network | -3/Testing | Archive Hyp. Mass Driver | -3/Testing | Hacked Hyp. Gauss Cannon | -3/Testing | Hacked Cld. Phase Cannon | -2/Quarantine | Archive Imp. Diametric Drive | -2/Quarantine | Archive Exp. Q-thruster | -2/Quarantine | Archive Cld. Q-thruster | -2/Quarantine | Archive Proton Burst Cannon | -2/Quarantine | Archive Robot Schematics ------------------ R-10 Processor | -7/Data Miner | Free G-50 Soldier | -7/Data Miner | Free O-24 Administrator | -7/Data Miner | Free B-48 Gladiator | -7/Data Miner | Free G-73 Enforcer | -2/Quarantine | Archive Fabricated ------------ Imp. Target Analyzer | x1 | -7/Factory | Preloaded O-24 Administrator | x1 | -6/Factory O-24 Administrator | x1 | -6/Factory O-24 Administrator | x1 | -6/Factory H-66 Slayer | x2 | -5/Factory | Preloaded O-24 Administrator | x1 | -5/Factory O-24 Administrator | x1 | -5/Factory O-24 Administrator | x1 | -3/Testing O-24 Administrator | x1 | -2/Research Alien Tech Used ----------------- None Achievements -------------- Shutout Challenges ------------ None RPGLIKE | -11 -10 -10 -10 -9 -8 -7 -7 -7 -7 -6 -6 -6 -6 -6 -6 -5 -5 -4 -4 -4 -4 -3 -3 -2 -2 -1 --------- Run | Scr Mat Min Exi Min Mat Fac Low Low Dat Pro Fac Ext Cet Arc Hub Fac Gar Fac Gar Fac Gar Res Tes Res Qua Acc Levels Raised 34 | . . . 1 . 6 3 . 1 . 1 3 2 1 . 1 1 1 2 1 1 . 2 . 3 . 4 XP Earned 57057 | 6000 635 750 650 843 8357 4168 500 1050 650 1487 4101 2941 1092 302 1199 1968 1887 2773 1762 973 745 1745 1241 3639 750 4849 XP Spent 56605 | 5990 . . 1500 . 8735 2800 1900 . . 2925 3040 4300 . . 2100 2600 . 4500 1600 1150 . 1840 1400 4125 . 6100 Upgrades 112 | 19 . . 3 . 27 2 2 . . 6 10 2 . . 6 1 . 9 2 2 . 5 1 3 . 12 Power Slot 2 | . . . . . 1 . . . . . . . . . . . . . . 1 . . . . . . Propulsion Slot 4 | 1 . . . . 1 . . . . . 1 . . . . . . . . . . . 1 . . . Utility Slot 11 | 2 . . 1 . 1 1 . . . . . 2 . . . 1 . 1 . . . . . 1 . 1 Weapon Slot 4 | 2 . . . . . 1 . . . . . . . . . . . . 1 . . . . . . . Core Integrity 24 | . . . . . 4 . . . . . 6 . . . . . . 4 . . . . . . . 10 Heat Dissipation 15 | . . . . . 9 . . . . . . . . . . . . 4 . . . 2 . . . . Energy Generation 3 | . . . . . 1 . . . . . . . . . 2 . . . . . . . . . . . Energy Storage 1 | . . . . . . . . . . . . . . . . . . . 1 . . . . . . . Matter Storage 13 | 4 . . . . . . . . . 2 . . . . . . . . . 1 . 3 . 2 . 1 Mass Support 2 | 2 . . . . . . . . . . . . . . . . . . . . . . . . . . Inventory Capacity 6 | 2 . . . . 3 . 1 . . . . . . . . . . . . . . . . . . . Sight Range 4 | . . . 2 . . . . . . 1 1 . . . . . . . . . . . . . . . Sensor Range 11 | 4 . . . . 6 . . . . . . . . . 1 . . . . . . . . . . . Terrain Scan Density 3 | 2 . . . . 1 . . . . . . . . . . . . . . . . . . . . . Ranged Accuracy 4 | . . . . . . . 1 . . 3 . . . . . . . . . . . . . . . . KI Resistance % 1 | . . . . . . . . . . . . . . . 1 . . . . . . . . . . . TH Resistance % 1 | . . . . . . . . . . . . . . . 1 . . . . . . . . . . . EX Resistance % 1 | . . . . . . . . . . . . . . . 1 . . . . . . . . . . . KI Damage % 2 | . . . . . . . . . . . 2 . . . . . . . . . . . . . . . Protomatter Created 6249 | . 15 . 98 18 238 122 . 146 . . 423 265 138 155 562 119 130 449 403 332 283 81 255 283 . 1734 Integrity Restored 10805 | . 45 . . 54 642 243 . 420 . . 543 666 478 465 478 631 385 400 411 567 958 146 728 422 . 2123 Core 8166 | . 39 . . 54 642 243 . 181 . . 343 275 382 465 279 622 354 39 307 361 803 62 631 408 . 1676 Parts 2639 | . 6 . . . . . . 239 . . 200 391 96 . 199 9 31 361 104 206 155 84 97 14 . 447 Protomatter Decayed 4070 | . . . 158 121 266 41 . . . . 298 340 85 . 300 . 68 199 382 262 92 28 54 302 . 1074 Game ------ Seed PhaseWeaponExpander Manual? 0 Play Time 03:40:45 Cumulative 228.9 hours Start 2022.06.07 @ 17:18:09 End 2022.06.08 @ 23:03:43 Sessions 5 Manual Loads 0 Difficulty Explorer Special Mode Winter2019/RPGLIKE Game No. 75 Rogue 0 Adventurer 1 Explorer 74 Win Type - Total 15 Types 8/0/4/3/0/0/0/0/0 Lore% 84 Gallery% 86 Achievement% 72 Wizard Run 0 Options --------- ASCII 0 Keyboard 1 Movement Numpad Keybinds 0 Fullscreen 0 Font 14/Terminus Map View 76x50 Tactical HUD 1 Map Filters BRIGHTNESS(150) Filters NONE Steam 1 RUN: ba03752d-4ba1-465d-9da5-5f175234741c